[Event "51st La Roda Open 2025"]
[Site "La Roda"]
[Date "2025.04.16"]
[Round "2.1"]
[White "Macias Sanchez, Homero"]
[Black "Pranav Vijay"]
[Result "0-1"]
[Annotator "RC"]
[ECO "A13"]
[WhiteElo "2074"]
[BlackElo "2252"]
[PlyCount "44"]
[EventDate "2025.04.15"]
[EventType "swiss"]
[EventCountry "ESP"]
[SourceTitle "playchess.com"]
[Source "ChessBase"]
[SourceQuality "1"]
[TimeControl "5400+30"]

1. Nf3 {[%emt 0:00:16]} Nf6 {[%emt 0:00:09]} 2. c4 {[%emt 0:00:08]} e6 {[%emt 0:00:49]} 3. g3 {[%emt 0:01:23]} d5 {[%emt 0:01:17]} 4. Bg2 {[%emt 0:00:14]} d4 {[%emt 0:01:01]} 5. e3 {[%emt 0:00:52]} Nc6 {[%emt 0:01:05]} 6. exd4 {[%emt 0:00:11]} Nxd4 {[%emt 0:00:09]} 7. O-O {[%emt 0:00:59]} Bc5 {[%emt 0:01:11]} 8. b4 {[%emt 0:05:12]} Nxf3+ {[%emt 0:00:50]} 9. Bxf3 {[%emt 0:00:33]} Bd4 {[%emt 0:00:13]} 10. Nc3 {[%emt 0:00:03]} e5 {[%emt 0:01:44]} 11. Rb1 {[%emt 0:00:19]} O-O {[%emt 0:05:27]} 12. Nb5 {[%emt 0:01:14]} e4 {[%emt 0:04:48]} 13. Nxd4 {[%emt 0:00:10]} Qxd4 {[%emt 0:01:04]} 14. Be2 {[%emt 0:05:14]} Rd8 {[%emt 0:03:01]} 15. Rb3 {[%emt 0:04:28]} Bf5 {[%emt 0:01:54]} 16. Qc2 {[%emt 0:01:16]} Qd7 {[%emt 0:01:39]} 17. Rd1 {[%emt 0:07:22]} e3 {[%emt 0:02:43]} 18. d3 {[%emt 0:00:08]} exf2+ {[%emt 0:00:08]} 19. Kxf2 {[%emt 0:00:26]} Re8 {[%emt 0:02:37]} 20. Bf3 {[%emt 0:07:54]} Bh3 {[%emt 0:07:47]} 21. d4 {[%emt 0:00:35]} Ng4+ {[%emt 0:01:35]} 22. Kg1 {[%emt 0:01:04]} Qxd4+ {[%emt 1:00:19]} 0-1

[Event "51st La Roda Open 2025"]
[Site "La Roda"]
[Date "2025.04.16"]
[Round "2.2"]
[White "Gumularz, Szymon"]
[Black "Guadamuro Torrente, Anabel"]
[Result "1-0"]
[Annotator "RC"]
[ECO "D11"]
[WhiteElo "2604"]
[BlackElo "2063"]
[PlyCount "63"]
[EventDate "2025.04.15"]
[EventType "swiss"]
[EventCountry "ESP"]
[SourceTitle "playchess.com"]
[Source "ChessBase"]
[SourceQuality "1"]
[TimeControl "5400+30"]

1. d4 {[%emt 0:00:03]} d5 {[%emt 0:04:04]} 2. c4 {[%emt 0:00:08]} c6 {[%emt 0:01:08]} 3. Nf3 {[%emt 0:00:08]} Nf6 {[%emt 0:00:18]} 4. Qb3 {[%emt 0:01:07]} e6 {[%emt 0:05:02]} 5. Bg5 {[%emt 0:00:35]} Be7 {[%emt 0:01:14]} 6. e3 {[%emt 0:00:11]} Ne4 {[%emt 0:05:03]} 7. Bxe7 {[%emt 0:00:12]} Qxe7 {[%emt 0:00:04]} 8. Bd3 {[%emt 0:00:33]} Nd7 {[%emt 0:05:58]} 9. Nc3 {[%emt 0:00:23]} Nxc3 {[%emt 0:08:43]} 10. bxc3 {[%emt 0:00:08]} O-O {[%emt 0:06:14]} 11. O-O {[%emt 0:01:33]} e5 {[%emt 0:09:28]} 12. Be2 {[%emt 0:02:31]} e4 {[%emt 0:09:32]} 13. Nd2 {[%emt 0:00:23]} Nf6 {[%emt 0:01:36]} 14. cxd5 {[%emt 0:00:59]} cxd5 {[%emt 0:01:07]} 15. c4 {[%emt 0:00:05]} dxc4 {[%emt 0:02:00]} 16. Bxc4 {[%emt 0:00:26]} b6 {[%emt 0:06:27]} 17. a4 {[%emt 0:00:15]} Qd6 {[%emt 0:03:06]} 18. h3 {[%emt 0:00:26]} Bd7 {[%emt 0:05:49]} 19. Rfc1 {[%emt 0:00:27]} h6 {[%emt 0:01:37]} 20. Ba6 {[%emt 0:03:55]} Rfe8 {[%emt 0:07:24]} 21. Rc2 {[%emt 0:03:49]} Rab8 {[%emt 0:03:34]} 22. Rac1 {[%emt 0:06:51]} Nd5 {[%emt 0:11:01]} 23. Bc4 {[%emt 0:00:11]} Bc6 {[%emt 0:00:23]} 24. Nxe4 {[%emt 0:05:46]} Rxe4 {[%emt 0:00:22]} 25. Bd3 {[%emt 0:00:03]} Bxa4 {[%emt 0:01:46]} 26. Qxa4 {[%emt 0:00:13]} Ree8 {[%emt 0:00:00]} 27. Qxa7 {[%emt 0:03:32]} Nb4 {[%emt 0:00:27]} 28. Bc4 {[%emt 0:00:44]} Nxc2 {[%emt 0:00:32]} 29. Bxf7+ {[%emt 0:00:46]} Kh8 {[%emt 0:00:11]} 30. Bxe8 {[%emt 0:00:06]} Nxd4 {[%emt 0:00:41]} 31. Bh5 {[%emt 0:00:44]} Nc6 {[%emt 0:00:34]} 32. Rxc6 {[%emt 0:00:10]} 1-0

[Event "51st La Roda Open 2025"]
[Site "La Roda"]
[Date "2025.04.16"]
[Round "2.3"]
[White "Garcia Gata, Jorge David"]
[Black "Albornoz Cabrera, Carlos Daniel"]
[Result "0-1"]
[Annotator "TA"]
[ECO "E26"]
[WhiteElo "2069"]
[BlackElo "2561"]
[PlyCount "110"]
[EventDate "2025.04.15"]
[EventType "swiss"]
[EventCountry "ESP"]
[SourceTitle "playchess.com"]
[Source "ChessBase"]
[SourceQuality "1"]
[TimeControl "5400+30"]

{[%evp 15,110,0,0,0,0,-35,0,-1,8,4,4,0,2,-51,16,23,132,94,95,85,103,94,109,110,101,-14,-8,-126,-128,-139,-130,-226,-233,-241,-235,-237,-144,-165,-164,-146,-101,-108,-25,-33,-45,-27,-29,-28,-28,-6,0,0,0,0,0,-12,-12,-12,0,-22,-22,-68,-55,-58,-53,-60,-59,-93,-70,-69,-60,-81,-45,-101,-118,-111,-87,-106,-86,-154,-149,-168,-157,-271,-281,-483,-476,-460,-457,-576,-528,-1039,-1035,-1016,-920,-578,-514]} 1. d4 {[%emt 0:00:03]} Nf6 {[%emt 0:00:05]} 2. c4 {[%emt 0:00:11]} e6 {[%emt 0:00:04]} 3. Nc3 {[%emt 0:00:29]} Bb4 {[%emt 0:00:11]} 4. a3 {[%emt 0:01:10]} Bxc3+ {[%emt 0:00:04]} 5. bxc3 {[%emt 0:00:09]} c5 {[%emt 0:00:02]} 6. e3 {[%emt 0:00:41]} b6 {[%emt 0:00:10]} 7. Bd3 {[%emt 0:01:05]} Bb7 {[%emt 0:00:36]} 8. f3 {[%emt 0:01:21]} Nc6 {[%emt 0:01:16]} 9. Ne2 {[%emt 0:00:34] E26: Nimzo-Indian: Sämisch: 5...c5 6 e3.} d6 {[%emt 0:01:36]} 10. O-O {[%emt 0:04:09]} Qe7 $5 {[%emt 0:04:16][%mdl 4] A promising side line.} 11. e4 {[%emt 0:08:21] The position is equal.} Na5 {[%emt 0:02:12]} 12. Ng3 $146 {[%emt 0:06:04]} (12. Bg5 h6 13. Bh4 g5 14. Bf2 Qc7 15. Rb1 Ba6 16. d5 e5 17. Ng3 Bc8 18. Be3 {1-0 Gabrielian,A (2464)-Solon,N (2306) Titled Tuesday intern op 30th Nov blitz 2021 (10)}) 12... Nd7 {[%emt 0:06:54]} 13. f4 {[%emt 0:04:37]} h5 {[%emt 0:12:15]} 14. e5 {[%emt 0:13:26]} (14. Nxh5 Qh4 15. Ng3 (15. Nxg7+ $2 Ke7 $19) 15... Nb3 $19 (15... Qxh2+ 16. Kf2 $11)) (14. f5 $11) 14... h4 {[%emt 0:03:06]} ({Better is} 14... O-O-O $15) 15. Ne4 $11 {[%emt 0:01:17]} Nxc4 {[%emt 0:07:10]} 16. f5 {[%emt 0:16:47]} Bxe4 {[%emt 0:01:32]} 17. Bxe4 {[%emt 0:04:07] A sharp opening} O-O-O {[%emt 0:04:07]} 18. Qa4 {[%emt 0:12:39] White sacrificed a pawn} Na5 {[%emt 0:00:07] [#]} 19. exd6 {[%emt 0:05:16]} (19. fxe6 Qxe6 20. Rb1 dxe5 $14) 19... Qxd6 {[%emt 0:00:03]} 20. Rb1 {[%emt 0:07:40]} (20. Bf4 $16 e5 21. dxe5 Nxe5 22. Qb5) 20... cxd4 $1 {[%emt 0:10:49]} 21. fxe6 {[%emt 0:06:29]} (21. cxd4 $11 Nf6 22. Qc2+ Qc7 23. Qxc7+ Kxc7 24. Bf4+ Kd7 25. fxe6+ fxe6 26. Bf3) 21... Nc5 $17 {[%emt 0:04:07]} 22. Qb5 {[%emt 0:00:18]} fxe6 {[%emt 0:00:36]} (22... Nxe4 23. Rxf7 Nb7 (23... dxc3 24. Qa6+ Kb8 25. Qxa7+ Kc8 26. Qa6+ Kb8 27. Rxb6+) 24. e7 Nxc3 (24... dxc3 $2 25. Qf5+ Kb8 26. Bf4 $18) (24... Rd7 $2 25. Bf4 $18) 25. Qf5+ (25. exd8=R+ Rxd8 26. Qc4+ Qc5 $18) 25... Kb8 26. Qf3 $18 (26. exd8=N Nxd8 27. Rd7 Rf8 $16)) 23. Bf4 {[%emt 0:01:43] [#]} (23. Bf3 $17) 23... e5 $1 $19 {[%emt 0:00:21]} 24. Bf5+ {[%emt 0:00:31]} (24. Bxe5 $2 Qxe5 25. Bf5+ Kc7 $19) 24... Kc7 {[%emt 0:01:05]} 25. Bg5 {[%emt 0:01:31]} (25. cxd4 $2 Qxd4+ 26. Kh1 exf4 $19) 25... Rdf8 {[%emt 0:11:07]} 26. cxd4 {[%emt 0:00:16]} Qxd4+ {[%emt 0:00:05]} 27. Kh1 {[%emt 0:00:07] [#]} h3 $1 {[%emt 0:02:18]} 28. Bxh3 {[%emt 0:01:26]} (28. gxh3 $2 Rxf5 29. Rxf5 Qe4+ (29... Rxh3 30. Qe2 $11) 30. Kg1 Qxf5 $19) (28. Qe2 hxg2+) 28... Qc4 {[%emt 0:14:52] Dancing on a razor blade.} (28... Ne4 $17 29. Bh4 Nc4 (29... Rxf1+ 30. Rxf1 Nc4 31. Be1 $15)) 29. Qxc4 $11 {[%emt 0:00:49]} Nxc4 {[%emt 0:00:01]} 30. Rfc1 {[%emt 0:01:00]} Nxa3 {[%emt 0:04:41]} 31. Ra1 {[%emt 0:00:12]} Nb5 {[%emt 0:02:27]} 32. Be7 {[%emt 0:00:08][%csl LRc5,LRf8][%cal Oe7c5] A strong pair of Bishops.} Re8 {[%emt 0:00:07]} 33. Bxc5 {[%emt 0:00:10]} bxc5 {[%emt 0:00:01]} 34. Rxc5+ {[%emt 0:00:38]} Kb6 {[%emt 0:00:02]} 35. Rd5 {[%emt 0:00:51]} Re7 {[%emt 0:01:25]} 36. Bd7 {[%emt 0:00:46]} Nc3 {[%emt 0:02:09]} 37. Rd3 {[%emt 0:00:35]} a6 {[%emt 0:01:31][%cal Oh8d8]} 38. Rc1 {[%emt 0:00:51]} (38. Rd6+ $11 Kc7 39. Rc6+ Kxd7 40. Rxc3) 38... Rd8 {[%emt 0:01:01] Black is more active.} 39. Rdxc3 {[%emt 0:00:56] White wants to mate with Rb1+.} Rexd7 $15 {[%emt 0:00:50][%mdl 4096] Endgame KRR-KRR. Black is a pawn up.} 40. Rb1+ {[%emt 0:00:32]} Ka7 {[%emt 0:00:02]} 41. Rcc1 {[%emt 0:00:08] Repels Rd1+} Rb8 {[%emt 0:00:54] aiming for ...Rxb1.} 42. Ra1 {[%emt 0:00:22]} Rb5 {[%emt 0:00:44]} 43. Kg1 {[%emt 0:00:28]} Kb6 {[%emt 0:00:02]} 44. Kf2 {[%emt 0:00:42]} (44. Rc8 $15) 44... Rd2+ $17 {[%emt 0:00:22]} 45. Kf3 {[%emt 0:00:33]} Rb3+ {[%emt 0:00:08]} 46. Ke4 {[%emt 0:00:10]} Rxg2 {[%emt 0:00:31]} 47. Kxe5 {[%emt 0:00:10]} (47. Rc8 $142 Kb7 (47... Rxh2 $2 {loses.} 48. Rb8+ Ka7 49. Rxb3 $18) 48. Re8) 47... Rxh2 {[%emt 0:00:48]} 48. Rg1 {[%emt 0:00:18]} Rb5+ {[%emt 0:00:26]} 49. Ke6 {[%emt 0:00:22]} (49. Kf4 $17 {was worth a try.}) 49... g5 {[%emt 0:00:24]} 50. Kf6 $2 {[%emt 0:00:45]} (50. Kf7) 50... Rh6+ $19 {[%emt 0:00:01] Black is clearly winning.} 51. Kg7 {[%emt 0:00:11]} Rc6 {[%emt 0:00:11]} 52. Rg4 {[%emt 0:00:35]} Ka7 {[%emt 0:00:24] ( -> ...Rb7+)} 53. Rf1 {[%emt 0:00:43]} Rb7+ {[%emt 0:00:11]} 54. Rf7 {[%emt 0:00:15]} Rxf7+ {[%emt 0:00:04]} 55. Kxf7 {[%emt 0:00:05]} Rc5 {[%emt 0:00:03] Weighted Error Value: White=0.38/Black=0.18 (very precise)   Mistake:       	White=9     	Black=3      Inaccurate:     	White=3     	Black=4      OK:         	White=17    	Black=15     Best:        	White=5     	Black=4      Strong:       	---       	Black=2} 0-1

[Event "51st La Roda Open 2025"]
[Site "La Roda"]
[Date "2025.04.16"]
[Round "2.4"]
[White "Fier, Alexandr"]
[Black "Machado Hernandez, Junior"]
[Result "1-0"]
[Annotator "TA"]
[ECO "B31"]
[WhiteElo "2534"]
[BlackElo "2051"]
[PlyCount "43"]
[EventDate "2025.04.15"]
[EventType "swiss"]
[EventCountry "ESP"]
[SourceTitle "playchess.com"]
[Source "ChessBase"]
[SourceQuality "1"]
[TimeControl "5400+30"]

{[%evp 17,43,11,23,20,25,9,62,42,87,73,92,79,214,200,321,310,587,587,575,573,564,561,866,870,862,856,795,770]} 1. e4 {[%emt 0:00:04]} c5 {[%emt 0:00:46]} 2. Nf3 {[%emt 0:00:06]} Nc6 {[%emt 0:00:23]} 3. Bb5 {[%emt 0:00:25]} g6 {[%emt 0:01:22]} 4. O-O {[%emt 0:00:21]} Bg7 {[%emt 0:00:10]} 5. c3 {[%emt 0:00:05]} Nf6 {[%emt 0:05:39]} 6. Re1 {[%emt 0:00:12]} O-O {[%emt 0:00:13]} 7. d4 {[%emt 0:00:04]} cxd4 {[%emt 0:00:10]} 8. cxd4 {[%emt 0:00:05]} d5 {[%emt 0:00:26]} 9. e5 {[%emt 0:00:04]} Ne4 {[%emt 0:00:14]} 10. Be3 {[%emt 0:00:03]} f5 {[%emt 0:04:10]} 11. exf6 {[%emt 0:01:46]} Bxf6 {[%emt 0:02:09]} (11... exf6 $11 12. h3 Qb6) 12. h3 {[%emt 0:05:31] White is slightly better.} Bg7 {[%emt 0:07:30][%cal Of8f3]} 13. Nc3 {[%emt 0:00:57]} Bf5 {[%emt 0:06:22]} 14. Rc1 {[%emt 0:00:57][%cal Oc3d5] And now Nxd5! would win.} Rc8 {[%emt 0:01:25] [#]} (14... Nxc3 $16 15. Rxc3 (15. bxc3 Rc8 $16) 15... Na5) 15. Nxd5 $1 $18 {[%emt 0:01:05][%mdl 512]} e5 {[%emt 0:06:58]} (15... Qxd5 $2 {perishes.} 16. Bc4 Be6 17. Bxd5 $18) (15... Kh8 $142) (15... Qd6 16. Bf4) 16. dxe5 {[%emt 0:01:47]} Nxe5 $2 {[%emt 0:06:37]} (16... Be6 {is a better defense.} 17. Nf4 Qxd1) 17. Rxc8 {[%emt 0:00:19] White is clearly winning.} (17. Bxa7 $2 {loses.} Rxc1 18. Qxc1 Qxd5 $19) 17... Bxc8 {[%emt 0:00:17]} 18. Nxe5 {[%emt 0:00:08]} (18. Bxa7 $2 {is the wrong capture.} Nxf3+ 19. Qxf3 (19. gxf3 $2 Qg5+ 20. Kh1 Bxh3 $19) 19... Rxf3 (19... Qxd5 $2 20. Qd3 $17) 20. Rxe4 Be6 $19 (20... Qxd5 $2 21. Bc4 $19)) 18... Bxe5 {[%emt 0:00:11]} 19. Bxa7 {[%emt 0:01:04]} Qa5 {[%emt 0:02:04]} 20. Rxe4 {[%emt 0:01:02]} Qxa7 {[%emt 0:00:49]} 21. Rxe5 {[%emt 0:00:06] aiming for Qd2.} Qxf2+ {[%emt 0:00:13]} 22. Kh2 {[%emt 0:00:16] Black did not feel at home in the position after the opening.   Weighted Error Value: White=0.04 (flawless) /Black=0.89.  Mistake:       	---       	Black=4      Inaccurate:     	---       	Black=2      OK:         	White=6     	Black=1      Best:        	White=1     	---        Brilliant:      	White=1     	---} 1-0

[Event "51st La Roda Open 2025"]
[Site "La Roda"]
[Date "2025.04.16"]
[Round "2.5"]
[White "Martinez Herranz, Francisco Jose"]
[Black "Suleymenov, Alisher"]
[Result "0-1"]
[Annotator "RC"]
[ECO "B30"]
[WhiteElo "2050"]
[BlackElo "2478"]
[PlyCount "58"]
[EventDate "2025.04.15"]
[EventType "swiss"]
[EventCountry "ESP"]
[SourceTitle "playchess.com"]
[Source "ChessBase"]
[SourceQuality "1"]
[TimeControl "5400+30"]

1. e4 {[%emt 0:00:04]} c5 {[%emt 0:00:33]} 2. Nc3 {[%emt 0:00:19]} Nc6 {[%emt 0:02:27]} 3. Nf3 {[%emt 0:00:38]} e5 {[%emt 0:12:15]} 4. Bc4 {[%emt 0:00:08]} g6 {[%emt 0:01:10]} 5. d3 {[%emt 0:00:24]} h6 {[%emt 0:00:15]} 6. Nd2 {[%emt 0:00:43]} Bg7 {[%emt 0:01:56]} 7. Nf1 {[%emt 0:00:15]} d6 {[%emt 0:08:49]} 8. Ne3 {[%emt 0:00:21]} Nge7 {[%emt 0:01:44]} 9. O-O {[%emt 0:01:40]} a6 {[%emt 0:00:05]} 10. a4 {[%emt 0:00:11]} Nb4 {[%emt 0:02:17]} 11. f4 {[%emt 0:05:21]} exf4 {[%emt 0:00:53]} 12. Rxf4 {[%emt 0:00:14]} Be6 {[%emt 0:08:42]} 13. Bxe6 {[%emt 0:15:42]} fxe6 {[%emt 0:00:05]} 14. a5 {[%emt 0:11:33]} d5 {[%emt 0:15:54]} 15. Na4 {[%emt 0:15:06]} Qxa5 {[%emt 0:04:04]} 16. Qg4 {[%emt 0:01:02]} Qc7 {[%emt 0:11:35]} 17. Qxe6 {[%emt 0:11:56]} Qxf4 {[%emt 0:03:16]} 18. Nf5 {[%emt 0:00:10]} Bd4+ {[%emt 0:00:33]} 19. Nxd4 {[%emt 0:00:11]} Qf7 {[%emt 0:00:55]} 20. Nxc5 {[%emt 0:04:31]} Qxe6 {[%emt 0:00:27]} 21. Ndxe6 {[%emt 0:02:47]} Nxc2 {[%emt 0:02:04]} 22. Rb1 {[%emt 0:01:33]} Rc8 {[%emt 0:03:28]} 23. Nxb7 {[%emt 0:03:14]} Rc6 {[%emt 0:01:22]} 24. Nec5 {[%emt 0:03:27]} g5 {[%emt 0:03:46]} 25. b4 {[%emt 0:01:11]} dxe4 {[%emt 0:00:40]} 26. dxe4 {[%emt 0:00:22]} O-O {[%emt 0:00:51]} 27. Nd3 {[%emt 0:01:22]} Nd4 {[%emt 0:02:05]} 28. Bb2 {[%emt 0:01:18]} Ne2+ {[%emt 0:03:03]} 29. Kh1 {[%emt 0:00:02]} Rc1+ {[%emt 0:00:23]} 0-1

[Event "51st La Roda Open 2025"]
[Site "La Roda"]
[Date "2025.04.16"]
[Round "2.6"]
[White "Lopez Martinez, Josep Manuel"]
[Black "Fernandez Cano, Victor"]
[Result "1-0"]
[Annotator "RC"]
[ECO "E07"]
[WhiteElo "2460"]
[BlackElo "2037"]
[PlyCount "73"]
[EventDate "2025.04.15"]
[EventType "swiss"]
[EventCountry "ESP"]
[SourceTitle "playchess.com"]
[Source "ChessBase"]
[SourceQuality "1"]
[TimeControl "5400+30"]

1. c4 {[%emt 0:01:10]} Nf6 {[%emt 0:00:27]} 2. g3 {[%emt 0:01:06]} e6 {[%emt 0:01:15]} 3. Bg2 {[%emt 0:00:35]} d5 {[%emt 0:01:04]} 4. Nf3 {[%emt 0:01:00]} Be7 {[%emt 0:01:07]} 5. d4 {[%emt 0:01:19]} O-O {[%emt 0:01:24]} 6. Nc3 {[%emt 0:00:22]} Nbd7 {[%emt 0:06:09]} 7. O-O {[%emt 0:05:22]} c6 {[%emt 0:08:14]} 8. b3 {[%emt 0:05:46]} Re8 {[%emt 0:05:14]} 9. Qc2 {[%emt 0:01:02]} Bf8 {[%emt 0:05:38]} 10. Rd1 {[%emt 0:01:31]} a5 {[%emt 0:04:44]} 11. Bf4 {[%emt 0:04:24]} h6 {[%emt 0:03:25]} 12. e4 {[%emt 0:01:30]} dxe4 {[%emt 0:00:56]} 13. Nxe4 {[%emt 0:00:06]} Nxe4 {[%emt 0:00:11]} 14. Qxe4 {[%emt 0:00:04]} a4 {[%emt 0:03:51]} 15. Rab1 {[%emt 0:01:30]} axb3 {[%emt 0:00:56]} 16. axb3 {[%emt 0:00:05]} Ra2 {[%emt 0:04:31]} 17. b4 {[%emt 0:00:51]} Ra4 {[%emt 0:05:06]} 18. Bd2 {[%emt 0:01:34]} Ra2 {[%emt 0:07:08]} 19. Qd3 {[%emt 0:05:52]} g6 {[%emt 0:07:28]} 20. Qb3 {[%emt 0:01:15]} Ra8 {[%emt 0:00:50]} 21. Be3 {[%emt 0:01:27]} Qe7 {[%emt 0:02:59]} 22. Ne5 {[%emt 0:02:25]} Bg7 {[%emt 0:03:46]} 23. f4 {[%emt 0:00:23]} Nf6 {[%emt 0:05:06]} 24. Ra1 {[%emt 0:07:07]} Bd7 {[%emt 0:01:21]} 25. h3 {[%emt 0:01:01]} Bf8 {[%emt 0:02:00]} 26. g4 {[%emt 0:02:43]} Red8 {[%emt 0:00:46]} 27. g5 {[%emt 0:03:36]} hxg5 {[%emt 0:06:12]} 28. fxg5 {[%emt 0:00:12]} Ne8 {[%emt 0:01:10]} 29. b5 {[%emt 0:04:41]} Rxa1 {[%emt 0:03:52]} 30. Rxa1 {[%emt 0:00:12]} cxb5 {[%emt 0:00:03]} 31. c5 {[%emt 0:00:14]} Bg7 {[%emt 0:03:32]} 32. Ra7 {[%emt 0:03:54]} Bxe5 {[%emt 0:01:35]} 33. dxe5 {[%emt 0:00:06]} Rc8 {[%emt 0:02:36]} 34. Rxb7 {[%emt 0:00:29]} Qd8 {[%emt 0:00:29]} 35. Qd3 {[%emt 0:00:48]} Rc7 {[%emt 0:00:25]} 36. c6 {[%emt 0:00:45]} Rxb7 {[%emt 0:00:01]} 37. cxb7 {[%emt 0:00:08]} 1-0

[Event "51st La Roda Open 2025"]
[Site "La Roda"]
[Date "2025.04.16"]
[Round "2.7"]
[White "Suarez Alvarez, Miguel"]
[Black "Kanov, Nikola"]
[Result "0-1"]
[Annotator "RC"]
[ECO "E01"]
[WhiteElo "2036"]
[BlackElo "2413"]
[PlyCount "58"]
[EventDate "2025.04.15"]
[EventType "swiss"]
[EventCountry "ESP"]
[SourceTitle "playchess.com"]
[Source "ChessBase"]
[SourceQuality "1"]
[TimeControl "5400+30"]

1. d4 {[%emt 0:00:07]} Nf6 {[%emt 0:00:42]} 2. c4 {[%emt 0:00:27]} e6 {[%emt 0:00:58]} 3. g3 {[%emt 0:00:19]} c5 {[%emt 0:00:27]} 4. Nf3 {[%emt 0:00:06]} cxd4 {[%emt 0:00:30]} 5. Nxd4 {[%emt 0:00:07]} d5 {[%emt 0:01:04]} 6. Bg2 {[%emt 0:00:41]} e5 {[%emt 0:00:25]} 7. Nf3 {[%emt 0:00:07]} d4 {[%emt 0:00:20]} 8. O-O {[%emt 0:00:07]} Nc6 {[%emt 0:00:34]} 9. e3 {[%emt 0:00:21]} Be7 {[%emt 0:00:38]} 10. exd4 {[%emt 0:00:08]} exd4 {[%emt 0:00:17]} 11. Bf4 {[%emt 0:00:20]} O-O {[%emt 0:01:05]} 12. Ne5 {[%emt 0:00:36]} a5 {[%emt 0:00:36]} 13. Bxc6 {[%emt 0:11:22]} bxc6 {[%emt 0:00:10]} 14. Nxc6 {[%emt 0:00:07]} Qd7 {[%emt 0:00:38]} 15. Nxe7+ {[%emt 0:04:18]} Qxe7 {[%emt 0:00:08]} 16. Re1 {[%emt 0:05:07]} Qd7 {[%emt 0:08:20]} 17. Nd2 {[%emt 0:05:15]} Bb7 {[%emt 0:01:57]} 18. Rc1 {[%emt 0:07:11]} Rfe8 {[%emt 0:07:17]} 19. Rxe8+ {[%emt 0:08:14]} Rxe8 {[%emt 0:00:29]} 20. Nb3 {[%emt 0:11:55]} Qh3 {[%emt 0:06:40]} 21. Qf1 {[%emt 0:00:12]} Qh5 {[%emt 0:02:56]} 22. Qd3 {[%emt 0:14:50]} Qh3 {[%emt 0:24:43]} 23. Qf1 {[%emt 0:02:43]} Qh5 {[%emt 0:01:16]} 24. Qd3 {[%emt 0:00:17]} h6 {[%emt 0:02:02]} 25. c5 {[%emt 0:04:19]} Ng4 {[%emt 0:09:03]} 26. h4 {[%emt 0:02:23]} Qd5 {[%emt 0:00:38]} 27. f3 {[%emt 0:03:53]} Re3 {[%emt 0:02:43]} 28. Qd1 {[%emt 0:00:48]} Rxf3 {[%emt 0:01:04]} 29. c6 {[%emt 0:03:55]} Rf2 {[%emt 0:00:22]} 0-1

[Event "51st La Roda Open 2025"]
[Site "La Roda"]
[Date "2025.04.16"]
[Round "2.8"]
[White "Valmana Canto, Jaime"]
[Black "Mazon Menendez, Jorge"]
[Result "1-0"]
[Annotator "RC"]
[ECO "A18"]
[WhiteElo "2385"]
[BlackElo "2032"]
[PlyCount "105"]
[EventDate "2025.04.15"]
[EventType "swiss"]
[EventCountry "ESP"]
[SourceTitle "playchess.com"]
[Source "ChessBase"]
[SourceQuality "1"]
[TimeControl "5400+30"]

1. c4 {[%emt 0:03:03]} Nf6 {[%emt 0:01:25]} 2. Nc3 {[%emt 0:00:09]} e6 {[%emt 0:04:34]} 3. e4 {[%emt 0:00:10]} Bb4 {[%emt 0:01:32]} 4. e5 {[%emt 0:00:34]} Ng8 {[%emt 0:07:01]} 5. Qg4 {[%emt 0:01:06]} Kf8 {[%emt 0:01:43]} 6. d4 {[%emt 0:04:15]} f5 {[%emt 0:10:16]} 7. Qg3 {[%emt 0:07:25]} Ne7 {[%emt 0:08:27]} 8. a3 {[%emt 0:04:24]} Bxc3+ {[%emt 0:00:42]} 9. Qxc3 {[%emt 0:00:07]} Nbc6 {[%emt 0:01:33]} 10. Nf3 {[%emt 0:05:41]} b6 {[%emt 0:02:49]} 11. Bf4 {[%emt 0:07:37]} Bb7 {[%emt 0:03:36]} 12. O-O-O {[%emt 0:00:10]} Ng6 {[%emt 0:02:59]} 13. Be3 {[%emt 0:03:52]} Qe8 {[%emt 0:09:31]} 14. h4 {[%emt 0:01:55]} h6 {[%emt 0:06:05]} 15. h5 {[%emt 0:02:53]} Nge7 {[%emt 0:00:16]} 16. d5 {[%emt 0:11:15]} Nd8 {[%emt 0:01:40]} 17. d6 {[%emt 0:14:42]} cxd6 {[%emt 0:05:55]} 18. exd6 {[%emt 0:00:06]} Nec6 {[%emt 0:00:15]} 19. Be2 {[%emt 0:00:28]} Qf7 {[%emt 0:06:05]} 20. Nh4 {[%emt 0:00:21]} e5 {[%emt 0:01:19]} 21. f4 {[%emt 0:01:15]} e4 {[%emt 0:01:20]} 22. g4 {[%emt 0:00:36]} fxg4 {[%emt 0:00:40]} 23. Rhg1 {[%emt 0:00:16]} Rg8 {[%emt 0:03:27]} 24. f5 {[%emt 0:08:29]} Qf6 {[%emt 0:01:08]} 25. Qxf6+ {[%emt 0:00:07]} gxf6 {[%emt 0:00:08]} 26. Bxh6+ {[%emt 0:00:04]} Kf7 {[%emt 0:01:09]} 27. Ng6 {[%emt 0:03:31]} Ne5 {[%emt 0:00:59]} 28. Nxe5+ {[%emt 0:01:21]} fxe5 {[%emt 0:00:08]} 29. Rxg4 {[%emt 0:00:02]} Rxg4 {[%emt 0:02:30]} 30. Bxg4 {[%emt 0:00:03]} Nc6 {[%emt 0:00:09]} 31. f6 {[%emt 0:00:24]} Nd4 {[%emt 0:01:48]} 32. Be3 {[%emt 0:08:40]} Bc6 {[%emt 0:06:20]} 33. h6 {[%emt 0:08:42]} Kxf6 {[%emt 0:04:23]} 34. Rf1+ {[%emt 0:01:37]} Nf3 {[%emt 0:01:53]} 35. b4 {[%emt 0:00:01]} Rg8 {[%emt 0:01:33]} 36. h7 {[%emt 0:01:51]} Rh8 {[%emt 0:00:17]} 37. b5 {[%emt 0:00:01]} Bb7 {[%emt 0:01:33]} 38. Rh1 {[%emt 0:01:34]} Bc8 {[%emt 0:00:23]} 39. Rh6+ {[%emt 0:00:07]} Kg7 {[%emt 0:00:39]} 40. Bf5 {[%emt 0:00:02]} Nd4 {[%emt 0:00:40]} 41. Bxe4 {[%emt 0:00:36]} Ne2+ {[%emt 0:00:54]} 42. Kd2 {[%emt 0:00:15]} Nf4 {[%emt 0:00:10]} 43. Bxf4 {[%emt 0:00:39]} exf4 {[%emt 0:00:05]} 44. Rh4 {[%emt 0:00:35]} Rf8 {[%emt 0:01:17]} 45. Ke2 {[%emt 0:00:20]} Kh8 {[%emt 0:01:07]} 46. Kf3 {[%emt 0:00:09]} a6 {[%emt 0:00:33]} 47. a4 {[%emt 0:00:25]} axb5 {[%emt 0:00:06]} 48. axb5 {[%emt 0:00:05]} Rf7 {[%emt 0:00:56]} 49. Rxf4 {[%emt 0:00:18]} Rxf4+ {[%emt 0:00:30]} 50. Kxf4 {[%emt 0:00:07]} Kg7 {[%emt 0:00:02]} 51. Ke5 {[%emt 0:01:00]} Kh8 {[%emt 0:00:29]} 52. Kf6 {[%emt 0:00:07]} Bb7 {[%emt 0:00:51]} 53. Bxb7 {[%emt 0:00:02]} 1-0